Cogmind - Beta 13 X2 @@@ ROGUE MODE // 2024.01.24 @ 19:18:30 Player: IzRey Result: Destroyed by as-12356 with Assembled Blade Performance ------------- Evolutions (0) 0 Regions Visited (2) 400 Robots Destroyed (32) 160 Value Destroyed (426) 426 Prototype IDs (2) 40 Alien Tech Used (0) 0 Bonus (0) 0 TOTAL SCORE: 1026 Bonus ------- None Cogmind --------- Core Integrity 0/250 Matter 271/300 Energy 89/125 System Corruption 0% Temperature Cool (0) Movement Rolling (110) Ox2 Location -10/Mines Parts ------- > --- POWER (1) -------- Light Ion Engine > --- PROPULSION (2) --- Wheel Wheel > --- UTILITY (2) ------ High-capacity Storage Unit Sensor Array > --- WEAPON (2) ------- Light Assault Rifle Light Assault Rifle > --- INVENTORY (20) --- Light Nuclear Core Aluminum Leg Aluminum Leg Aluminum Leg Aluminum Leg Wheel Large Matter Pod (150) Targeting Computer Targeting Computer Light Armor Plating Small Laser Peak State ------------ > --- POWER ------------ Ion Engine > --- PROPULSION ------- Wheel Wheel > --- UTILITY ---------- Small Storage Unit Improved Terrain Scanner > --- WEAPON ----------- Medium Laser Light Assault Rifle > --- INVENTORY -------- Light Ion Engine Aluminum Leg Aluminum Leg Compact Wheel [Rating: 9] Favorites ----------- Power Ion Engine Engine Ion Engine Propulsion Wheel Wheel Wheel Utility High-capacity Storage Unit Device Sensor Array Storage High-capacity Storage Unit Weapon Light Assault Rifle Energy Gun Medium Laser Ballistic Gun Light Assault Rifle Build | -11 -10 -10 ------- Run | Yrd Mat Min Slots Evolved . | . . . Power . | . . . Propulsion . | . . . Utility . | . . . Weapon . | . . . Parts Attached 25 | 8 11 6 Power 4 | 1 1 2 Engine 4 | 1 1 2 Core . | . . . Reactor . | . . . Propulsion 8 | 3 3 2 Treads . | . . . Leg . | . . . Wheel 8 | 3 3 2 Hover . | . . . Flight . | . . . Utility 7 | 2 5 . Device 5 | 1 4 . Storage 2 | 1 1 . Processor . | . . . Hackware . | . . . Protection . | . . . Artifact . | . . . Weapon 6 | 2 2 2 Energy Gun 1 | 1 . . Energy Cannon . | . . . Ballistic Gun 5 | 1 2 2 Ballistic Cannon . | . . . Launcher . | . . . Special Weapon . | . . . Impact Weapon . | . . . Slashing Weapon . | . . . Piercing Weapon . | . . . Special Melee Weapon . | . . . Unidentified Prototypes . | . . . Parts Lost 12 | . 6 6 Power 2 | . . 2 Propulsion 5 | . 3 2 Utility 2 | . 2 . Weapon 3 | . 1 2 Highest Loss Streak 5 | . 2 5 To Critical Strikes . | . . . Average Slot Usage (%) 98 | . 98 94 Engine 13 | . 14 11 Wheel 27 | . 27 28 Device 13 | . 13 14 Storage 14 | . 14 14 Energy Gun 6 | . 6 . Ballistic Gun 21 | . 21 25 Naked Turns . | . . . Heaviest Build 49 | 14 49 48 Greatest Support 26 | 20 26 26 Greatest Overweight (x) 2 | . 2 2 Average Overweight (x) . | . 1 1 Largest Inventory Capacity 20 | 8 20 20 Average Capacity 18 | 6 19 20 Most Carried 18 | 8 18 17 Average Carried 12 | 4 13 14 Final Capacity 20 | 8 20 20 Final Carried 17 | 8 17 11 Class Distribution -------------------- 100% | Mutant Dominant Class ---------------- Mutant | -10/Materials Mutant | -10/Mines Resources | -11 -10 -10 ----------- Run | Yrd Mat Min Matter Collected 682 | 292 361 29 Remotely . | . . . Salvage Created 916 | 168 709 39 Parts 58 | 11 44 3 Haulers Intercepted 2 | . 2 . Recyclers Shooed 1 | . 1 . Parts Field Recycled . | . . . Retrieved Matter . | . . . Parts Self-Destructed . | . . . Prevented . | . . . Kills | -11 -10 -10 ------- Run | Yrd Mat Min Combat Hostiles Destroyed 17 | . 14 3 Guns 17 | . 14 3 Classes Destroyed 6 | 3 3 . Worker 7 | 1 6 . Tunneler 4 | 3 1 . Hauler 2 | . 2 . Recycler 2 | 1 1 . Swarmer 9 | . 6 3 Grunt 8 | . 8 . Best Kill Streak 4 | 3 4 3 Combat Bots Only 3 | . 3 3 Max Kills in Single Turn 1 | 1 1 1 Gunslinging . | . . . Exploded . | . . . Melee . | . . . Uniques/NPCs Destroyed . | . . . Combat | -11 -10 -10 -------- Run | Yrd Mat Min Hostile Shots Fired 137 | . 99 38 Missed 27 | . 23 4 Damage Taken 1126 | . 773 353 Core 261 | . 185 76 Absorbed by Shields . | . . . Core Remaining (%) 100 | 100 . . Volleys Fired 116 | 12 89 15 Largest 2 | 2 2 2 Hottest 70 | 70 70 40 Shots Fired 229 | 24 178 27 Gun 229 | 24 178 27 Cannon . | . . . Launcher . | . . . Special . | . . . Kinetic 170 | 12 131 27 Thermal 59 | 12 47 . Explosive . | . . . Electromagnetic . | . . . Robot Hit Streak 11 | 11 8 8 Robot Miss Streak 6 | 2 6 5 Penetration Max . | . . . Secondary Targets 5 | . 4 1 Max Gunslinging Chain 1 | . 1 1 Shots Hit Robots 146 | 18 113 15 Core Hits 60 | 8 45 7 Critical Kills . | . . . Critical Parts Destroyed . | . . . Critical Strikes 3 | . 3 . Burn 3 | . 3 . Melee Attacks . | . . . Impact . | . . . Slashing . | . . . Piercing . | . . . Sneak Attacks . | . . . Combat Hostiles . | . . . Follow-up Attacks . | . . . Damage Inflicted 1410 | 196 1074 140 Guns 1410 | 196 1074 140 Cannons . | . . . Explosions . | . . . Melee . | . . . Ramming . | . . . Kinetic 883 | 71 672 140 Thermal 527 | 125 402 . Explosive . | . . . Electromagnetic . | . . . Impact . | . . . Slashing . | . . . Piercing . | . . . Highest Corruption . | . . . Average Corruption . | . . . Corruption Purged . | . . . Corruption Blocked . | . . . Overload Shots . | . . . Overflow Damage . | . . . Projectiles . | . . . Explosions . | . . . Melee . | . . . Knockbacks . | . . . Impact . | . . . Kinetic . | . . . Secondary . | . . . Self-Inflicted Damage . | . . . Shots . | . . . Rammed . | . . . Targets Rammed . | . . . Kicked . | . . . Crushed . | . . . Highest Temperature 212 | 90 212 . Average Temperature 45 | 33 48 . Received Heat Transfer 261 | . 261 . Siege Activations . | . . . Robots Corrupted . | . . . Combat Hostiles . | . . . Parts Fried . | . . . Impact Corruptions . | . . . Robots Melted . | . . . Combat Hostiles . | . . . Parts Melted 4 | . 4 . Heat Transferred 1776 | 370 1406 . Parts Sabotaged . | . . . Parts Stolen . | . . . Parts Stripped . | . . . Power Chain Reactions . | . . . Missiles Intercepted . | . . . Alert | -11 -10 -10 ------- Run | Yrd Mat Min Peak Influence 238 | 25 238 86 Initial 36 | . 16 36 Average 78 | 8 88 51 Maximum Alert Level 1 | . 1 . Low Security (%) 94 | 100 93 100 Level 1 5 | . 6 . Level 2 . | . . . Level 3 . | . . . Level 4 . | . . . Level 5 . | . . . High Security . | . . . Max Security . | . . . Squads Dispatched 2 | . 2 . Investigation 2 | . 2 . Extermination . | . . . Reinforcement . | . . . Assault . | . . . Garrison . | . . . Intercept . | . . . Searches Triggered . | . . . Construction Impeded . | . . . Haulers Reinforced . | . . . Active Scanning Responses . | . . . Cargo Convoy Interrupts . | . . . Stealth | -11 -10 -10 --------- Run | Yrd Mat Min Distress Signals . | . . . Communications Jammed . | . . . Distress Signals . | . . . Times Spotted 25 | . 19 6 Peak Tracking Total 3 | . 3 3 Tactical Retreats 4 | . 3 1 Traps | -11 -10 -10 ------- Run | Yrd Mat Min Traps Triggered 2 | . 2 . Indirectly . | . . . Trap Hack Attempts . | . . . Triggered . | . . . Disarmed . | . . . Reprogrammed . | . . . Reused . | . . . Traps Extracted . | . . . Installed . | . . . Triggered . | . . . Machines | -11 -10 -10 ---------- Run | Yrd Mat Min Machines Disabled . | . . . Max in Single Turn . | . . . Machines Repaired . | . . . Machines Dismantled . | . . . Machines Sabotaged . | . . . Overloaded Fab Kills . | . . . Hacking | -11 -10 -10 --------- Run | Yrd Mat Min Machines Accessed 7 | . 7 . Terminals 6 | . 6 . Fabricators . | . . . Repair Stations . | . . . Recycling Units 1 | . 1 . Scanalyzers . | . . . Garrison Access . | . . . Total Hacks 13 | . 13 . Successful 8 | . 8 . Failed 5 | . 5 . Catastrophic . | . . . Database Lockouts . | . . . Manual 5 | . 5 . Terminals 12 | . 12 . Fabricators . | . . . Repair Stations . | . . . Recycling Units 1 | . 1 . Scanalyzers . | . . . Garrison Access . | . . . Terminal Hacks 8 | . 8 . Robot Analysis 2 | . 2 . Prototype ID Bank 1 | . 1 . Locate Traps 1 | . 1 . Registered Components 1 | . 1 . Zone Layout 3 | . 3 . Fabricator Hacks . | . . . Repair Station Hacks . | . . . Recycling Unit Hacks . | . . . Scanalyzer . | . . . Garrison Access Hacks . | . . . Unauthorized Hacks . | . . . Terminals . | . . . Fabricators . | . . . Repair Stations . | . . . Recycling Units . | . . . Scanalyzers . | . . . Garrison Access . | . . . Data Cores Recovered . | . . . Used . | . . . Hacking Detections 5 | . 5 . Full Trace Events 1 | . 1 . Feedback Events . | . . . Feedback Blocked . | . . . Robot Schematics Acquired . | . . . Robots Built . | . . . Authchips . | . . . Time . | . . . Total Robot Build Rating . | . . . Part Schematics Acquired . | . . . Parts Built . | . . . Authchips . | . . . Time . | . . . Total Part Build Rating . | . . . Parts Repaired . | . . . Time . | . . . Parts Recycled . | . . . Recycled Matter . | . . . Retrieved Matter . | . . . Retrieved Components . | . . . Parts Scanalyzed . | . . . Part Schematics Acquired . | . . . Parts Damaged . | . . . Bothacking | -11 -10 -10 ------------ Run | Yrd Mat Min Used RIF Installer . | . . . Robots Hacked . | . . . Non-combat . | . . . Combat . | . . . Robot Hacks Applied . | . . . Relay Couplers Released . | . . . Fabnet Peak Effective % . | . . . Robots Rewired . | . . . Allies Hacked . | . . . Hacks Repelled . | . . . Allies | -11 -10 -10 -------- Run | Yrd Mat Min Total Allies . | . . . Largest Group . | . . . Highest-Rated Group . | . . . Highest-Rated Ally . | . . . Total Orders . | . . . Ally Attacks . | . . . Total Damage . | . . . Kills . | . . . Allies Corrupted . | . . . Allies Melted . | . . . Intel | -11 -10 -10 ------- Run | Yrd Mat Min Robot Analysis Total 2 | . 2 . Derelict Logs Recovered . | . . . Drone Launches . | . . . Drone Recoveries . | . . . Exploration | -11 -10 -10 ------------- Run | Yrd Mat Min Turns Passed 1341 | 112 1134 95 Spaces Moved 873 | 74 750 49 Core 2 | 2 . . Treads . | . . . Legs . | . . . Wheels 871 | 72 750 49 Hover . | . . . Flight . | . . . Fastest Speed 50 | 50 80 105 Average Speed 101 | 79 103 106 Slowest Speed 110 | 80 110 110 Overloaded Moves . | . . . Propulsion Burnouts . | . . . Robots Hopped . | . . . Cave-ins Triggered . | . . . Exploration Rate (%) 39 | 4 91 23 Regions Visited 2 Branch Regions 1 Pre-discovered Areas . | . . . Known Exits Taken . | . . . Unknown Exits Taken 2 | 1 1 . Scrap Searched . | . . . Spaces Dug . | . . . Terrain Destroyed . | . . . Melee . | . . . Projectile . | . . . AOE . | . . . Terrain Rammed . | . . . Walls Destroyed . | . . . Machines Disabled . | . . . Actions | -11 -10 -10 --------- Run | Yrd Mat Min Total 1130 | 102 958 70 Wait 86 | . 86 . Move 871 | 73 749 49 Hop . | . . . Pick Up 25 | 9 16 . Fast Attach 8 | 6 2 . Attach 13 | 1 6 6 Detach 2 | . 2 . Swap 4 | 1 3 . Drop 5 | . 5 . Fire 116 | 12 89 15 Melee . | . . . Ram . | . . . Kick . | . . . Crush . | . . . Escape Stasis . | . . . Rewire . | . . . Trap . | . . . Miscellaneous . | . . . Route ------- -11/Scrapyard -10/Materials (discovered 5 exits: [*Mat x3] / [*Min x2]) -10/Mines History --------- Turn | Location | Event 14 | -11/Scrapyard | Discovered new exit (range 16) 113 | -11/Scrapyard | Entered Materials 329 | -10/Materials | Build established: Mutant 539 | -10/Materials | Discovered new exit (range 3) 573 | -10/Materials | Discovered new exit (range 8) 573 | -10/Materials | Discovered new exit (range 19) 682 | -10/Materials | Core integrity fell below 50% 829 | -10/Materials | Discovered new exit (range 9) 1240 | -10/Materials | Discovered new exit (range 8) 1247 | -10/Materials | Entered Mines 1248 | -10/Mines | Assembled infested the area 1253 | -10/Mines | Assisted by a Guerilla fighting off Assembled 1266 | -10/Mines | Met a Derelict bent on vengeance 1292 | -10/Mines | Core integrity fell below 20% 1339 | -10/Mines | Lost 5 parts (1p2n2w) 1342 | -10/Mines | Destroyed by as-12356 with Assembled Blade Last Messages --------------- 01251_ C-30 ARC bursts open, deploying its payload. 01251_ D-53 Grenadier unfolds itself. 01253_ A derelict emerges from the shadows: "You need to get out of here! I've been tracking a group of Assembled to figure out where they're coming from, and they're closing on this area, come on!" 01279_ 1T-U0M(h): "I'll hold them off! Go on ahead or try to find another way!" 01279_ HV Slug penetrates Wall. 01290_ Wheel destroyed. 01295_ S-10 Pest destroyed. 01299_ Ion Engine destroyed. 01299_ Lgt. Assault Rifle destroyed. 01302_ Com. Wheel destroyed. 01307_ S-10 Pest destroyed. 01307_ Switching to secondary target: S-10 Pest. 01308_ Lgt. Assault Rifle destroyed. 01315_ S-10 Pest destroyed. 01318_ Acquired 11 matter. 01319_ Acquired 18 matter. 01339_ Ion Engine destroyed. Map ----- +----------------------------------------------------+ | ??????????????????????????????## #?????? | | ???????????????????????????????# #?????? | | ???????????????????????????????# #####?? | | ???????????????????????? ???# #?? | | ???????????????????????? ??# #?? | | ?????????????????????? # ??##### #?? | | ?????????????????????# ??????# #?? | | ?????????????????????# # #?????# #?? | | ?????????????????????? ?????# #?? | | ???????????????????????# # ????## #?? | | ????????????????????????# "##?##% #?? | | ????????????????????????# ### #?? | | ????????????????????????# #?? | | ????????????????????????# #?? | | ????????????????????????## #?? | | ?????????????????????????## ##?? | | ??????????????## ????????## #??? | | ?????????????## ???##### * ### #??? | | ????????????? ## ## ##?# #??? | | ?????????????? # #??# #??? | | ???????????????? """ #??# #??? | | ?????????????????# """ ## #### #??? | | ??????????????????# """ ## #??? | | ???????????????????# ######% #??? | | ??????????????????## #?####= ##?? | | ??????????????????# a@ #??# [ = #?? | | ???????????????# ### ##??# """ #?? | | ???????????????# ?????# ##### """ #?? | | ?????????????????? ??????# """ #?? | | ?????????????????????????####### #?? | | ???????????????????????????????########?? | | ????????????????????????????????????????? | | | | | | | | | | | | | | | | | | | | | | | | | | | | | | | | | | | | | +----------------------------------------------------+ Best States ------------- Heat Dissipation 35 Energy Generation 10 Energy Capacity 250 Matter Stores 300 Matter Capacity 300 Sight Range 16 Robot Scan Range 14 Terrain Scan Range 16 Terrain Scan Density 10 Evasion (%) 44 Item Schematics ----------------- None Robot Schematics ------------------ None Fabricated ------------ Nothing Alien Tech Used ----------------- None Achievements -------------- None Challenges ------------ None Game ------ Seed MicroSpectralGravjet Manual? 0 Play Time 00:22:40 Cumulative 575.8 hours Start 2024.01.24 @ 18:55:38 End 2024.01.24 @ 19:18:30 Sessions 1 Manual Loads 0 Difficulty Rogue Special Mode None Game No. 91 Rogue 74 Adventurer 17 Explorer 0 Win Type - Total 2 Types 2/0/0/0/0/0/0/0/0 Lore% 54 Gallery% 66 Achievement% 55 Wizard Run 0 Options --------- ASCII 0 Keyboard 1 Movement Vi Keybinds 0 Fullscreen 1 Font 18/Terminus Map View 76x50 Zoom Use 0% Tactical HUD 1 Map Filters NONE Filters NONE Steam 1 RUN: a19ce92b-a32c-4158-87e5-d068bd48979e